bitfinex/quotes_SOLUSD_20250829
["timestamp","ask_amount","ask_price","bid_price","bid_amount"]
[1756463942428,0.2,208.59,208.58,54.35115084]
[1756463942632,0.06,208.6,208.59,12.58115084]
[1756463942808,0.06,208.6,208.59,13.25115084]
[1756463945333,0.06,208.6,208.59,18.04524451]
[1756463945526,0.06,208.61,208.59,31.64083852]
[1756463945725,0.06,208.61,208.6,52.84674485]
[1756463946716,0.06,208.61,208.6,26.84674485]
[1756463947113,0.06,208.61,208.6,31.6406087]
[1756463947538,0.06,208.61,208.6,110.1406087]
[1756463947837,0.06,208.61,208.6,162.93501469]
[1756463948546,0.06,208.61,208.6,163.60501469]
[1756463950418,1e-08,208.61,208.6,151.2006087]
[1756463950624,0.06,208.65,208.62,39.59559401]
[1756463950825,0.06,208.65,208.62,93.21674485]
[1756463951033,0.06,208.65,208.62,93.88674485]
[1756463951449,0.06,208.65,208.62,67.88674485]
[1756463951645,0.06,208.65,208.63,13.25115084]
[1756463951847,1e-08,208.64,208.63,26.84674485]
[1756463952056,0.06,208.68,208.66,39.59559401]
[1756463952342,0.06,208.68,208.67,58.41340655]
[1756463952550,0.06,208.68,208.67,59.08340655]
[1756463952850,1e-08,208.68,208.67,72.67900056]
[1756463953939,1e-08,208.68,208.67,32.11822613]
[1756463954149,1e-08,208.68,208.67,71.98900056]
[1756463954451,1e-08,208.68,208.67,72.65900056]
[1756463957152,0.2,208.77,208.71,26.0]
[1756463957339,0.2,208.77,208.76,12.58115084]
[1756463957733,0.86,208.77,208.76,12.58115084]
[1756463958670,0.2,208.8,208.79,26.0]
[1756463958832,0.2,208.8,208.79,93.15674485]
[1756463959043,0.2,208.8,208.79,93.82674485]
[1756463959273,1e-08,208.8,208.79,93.82674485]
[1756463960050,1e-08,208.8,208.79,98.61624626]
[1756463960466,0.2,208.81,208.79,98.61624626]
[1756463960659,0.2,208.81,208.8,13.25115084]
[1756463960968,0.2,208.81,208.8,18.04042287]
[1756463961162,0.2,208.81,208.8,5.45927203]
[1756463961369,0.2,208.81,208.8,97.94601688]
[1756463961669,0.86,208.81,208.8,43.37042287]
[1756463961869,0.86,208.81,208.8,84.33042287]
[1756463962067,0.86,208.81,208.73,13.59559401]
[1756463962247,0.86,208.81,208.8,12.58115084]
[1756463962447,0.2,208.81,208.8,53.54115084]
[1756463963377,0.2,208.81,208.8,60.25287569]
[1756463963566,0.2,208.81,208.8,65.04214772]
[1756463964080,0.2,208.81,208.74,11.97662163]
[1756463964276,0.66,208.8,208.76,19.29287569]
[1756463964480,0.66,208.79,208.76,19.29287569]
[1756463964778,0.66,208.78,208.75,19.29287569]
[1756463964969,0.66,208.77,208.74,40.94]
[1756463965171,0.66,208.77,208.75,19.29287569]
[1756463966972,0.66,208.76,208.75,19.29287569]
[1756463967179,0.66,208.76,208.74,60.23287569]
[1756463967374,4.78933726,208.8,208.75,19.29287569]
[1756463967689,0.66,208.78,208.75,19.29287569]
[1756463967884,0.66,208.77,208.75,19.29287569]
[1756463970773,0.9,208.81,208.76,19.29287569]
[1756463971089,0.9,208.81,208.8,19.29287569]
[1756463971090,0.2,208.81,208.8,19.29287569]
[1756463971254,0.2,208.81,208.8,60.88287569]
[1756463971870,0.2,208.81,208.8,62.80267569]
[1756463972665,0.2,208.81,208.8,81.18754173]
[1756463972867,0.2,208.81,208.8,100.95934462]
[1756463973070,0.2,208.81,208.8,100.48041742]
[1756463973271,0.2,208.81,208.8,81.18754173]
[1756463978408,0.2,208.83,208.81,13.59559401]
[1756463978587,0.2,208.83,208.82,60.17287569]
[1756463978783,0.2,208.83,208.82,60.84287569]
[1756463979084,0.2,208.83,208.82,62.76221569]
[1756463979866,0.06,208.85,208.84,26.0]
[1756463980091,0.06,208.85,208.84,73.7684697]
[1756463980291,0.06,208.85,208.84,74.4384697]
[1756463980771,0.06,208.85,208.84,76.3578097]
[1756463980986,0.06,208.85,208.84,80.47616442]
[1756463981183,0.06,208.85,208.84,1.91934]
[1756463981184,0.76,208.85,208.84,1.91934]
[1756463981389,0.76,208.85,208.83,19.29287569]
[1756463981696,0.7,208.84,208.82,60.17287569]
[1756463981880,0.7,208.83,208.82,60.17287569]
[1756463982475,0.7,208.83,208.82,64.96168902]
[1756463983591,0.7,208.83,208.82,60.17287569]
[1756463984093,0.7,208.83,208.82,24.08168902]
[1756463984290,0.7,208.83,208.82,64.94168902]
[1756463984796,0.7,208.83,208.79,1.919892]
[1756463984797,0.7,208.83,208.81,40.86]
[1756463984992,0.7,208.82,208.81,40.86]
[1756463985197,0.7,208.82,208.78,19.29287569]
[1756463985396,0.7,208.81,208.79,40.86]
[1756463985580,0.7,208.8,208.78,40.86]
[1756463985785,0.7,208.79,208.78,40.86]
[1756463986392,0.7,208.79,208.78,26.0]
[1756463986699,0.7,208.79,208.78,40.84]
[1756463988496,0.7,208.79,208.77,64.92279682]
[1756463988679,0.7,208.78,208.77,64.92279682]
[1756463988870,0.7,208.8,208.77,64.92279682]
[1756463989074,0.7,208.79,208.77,64.92279682]
[1756463991302,0.7,208.79,208.78,40.84]
[1756463991603,17.33553681,208.83,208.78,58.17666179]
[1756463991604,0.7,208.83,208.78,58.17666179]
[1756463991798,0.7,208.83,208.8,12.54693098]
[1756463992106,0.7,208.82,208.8,53.36693098]
[1756463992404,0.7,208.81,208.8,40.82]
[1756463992610,0.7,208.81,208.79,53.36693098]
[1756463992795,0.7,208.8,208.79,40.82]
[1756463993195,0.7,208.8,208.78,58.15666179]
[1756463993386,0.7,208.8,208.79,40.82]
[1756463994602,0.7,208.8,208.78,12.54693098]
[1756463994908,0.7,208.8,208.78,53.36693098]
[1756463995282,0.7,208.79,208.77,0.03]
[1756463995604,17.33666179,208.78,208.77,0.03]
[1756463996204,18.03666179,208.78,208.77,0.03]
[1756463996505,0.7,208.78,208.77,0.03]
[1756464001608,0.06,208.83,208.77,26.03]
[1756464001795,0.06,208.83,208.81,12.54693098]
[1756464001999,0.06,208.83,208.8,12.54693098]
[1756464002000,0.77,208.83,208.8,12.54693098]
[1756464002198,0.77,208.83,208.81,12.54693098]
[1756464002407,0.06,208.83,208.81,12.54693098]
[1756464002893,0.06,208.83,208.8,12.54693098]
[1756464003413,0.77,208.83,208.79,12.54693098]
[1756464003798,0.77,208.83,208.8,12.54693098]
[1756464005210,0.77,208.83,208.81,12.54693098]
[1756464005416,0.06,208.83,208.82,12.54693098]
[1756464005904,0.06,208.83,208.81,78.5]
[1756464006108,0.71,208.82,208.81,78.5]
[1756464006500,0.06,208.83,208.81,78.5]
[1756464006689,0.06,208.83,208.81,91.04693098]
[1756464006885,0.06,208.83,208.81,95.83592618]
[1756464007416,0.06,208.83,208.82,12.54693098]
[1756464008605,0.06,208.83,208.81,91.04693098]
[1756464009015,0.06,208.83,208.81,78.5]
[1756464009224,0.06,208.83,208.81,83.28897394]
[1756464009436,0.06,208.83,208.81,78.5]
[1756464009636,0.71,208.82,208.81,78.5]
[1756464009820,0.06,208.83,208.81,78.5]
[1756464010029,0.06,208.83,208.77,0.03]
[1756464010030,13.25693098,208.82,208.77,0.03]
[1756464010221,12.54693098,208.81,208.77,0.03]
[1756464010732,12.54693098,208.78,208.77,0.03]
[1756464010922,13.25693098,208.78,208.77,0.03]
[1756464011116,18.04666179,208.78,208.77,0.03]
[1756464012341,13.25693098,208.78,208.77,0.03]
[1756464013517,4.73558414,208.82,208.77,0.03]
[1756464013712,13.25693098,208.82,208.77,0.03]
[1756464013943,13.25693098,208.81,208.77,0.03]
[1756464014631,0.71,208.8,208.77,0.03]
[1756464014835,0.71,208.79,208.77,0.03]
[1756464015325,0.71,208.78,208.77,0.03]
[1756464016134,12.54693098,208.79,208.77,0.03]
[1756464016330,13.25693098,208.8,208.77,0.03]
[1756464017745,0.71,208.8,208.77,0.03]
[1756464017944,13.25693098,208.8,208.77,0.03]
[1756464018531,12.54693098,208.79,208.77,0.03]
[1756464018730,12.54693098,208.78,208.77,0.03]
[1756464018929,13.25693098,208.78,208.77,0.03]
[1756464019130,12.54693098,208.78,208.77,0.03]
[1756464019538,12.54693098,208.79,208.77,0.03]
[1756464019851,13.25693098,208.79,208.77,0.03]
[1756464025453,12.54693098,208.78,208.77,0.03]
[1756464025654,13.25693098,208.79,208.77,0.03]
[1756464027457,12.54693098,208.78,208.77,0.03]
[1756464027774,0.71,208.79,208.77,0.03]
[1756464028057,13.25693098,208.79,208.77,0.03]
[1756464028458,0.71,208.79,208.77,0.03]
[1756464028659,0.06,208.83,208.78,13.24693098]
[1756464028965,0.06,208.83,208.8,12.54693098]
[1756464029545,0.06,208.83,208.81,13.24693098]
[1756464029857,0.06,208.83,208.82,4.78881333]
[1756464031853,0.06,208.83,208.81,4.78904267]
[1756464033852,0.06,208.83,208.82,26.83252499]
[1756464034159,1e-08,208.83,208.82,105.81140632]
[1756464034342,0.06,208.85,208.84,39.59559401]
[1756464034669,0.06,208.85,208.84,92.76252499]
[1756464034866,0.06,208.85,208.84,93.45252499]
[1756464035457,0.06,208.85,208.84,85.69394873]
[1756464035640,0.06,208.85,208.84,98.24087971]
[1756464036442,0.06,208.88,208.87,26.0]
[1756464036669,0.2,208.89,208.88,13.59559401]
[1756464036846,0.2,208.89,208.88,26.83252499]
[1756464037261,0.2,208.89,208.88,67.43252499]
[1756464037442,0.2,208.89,208.88,31.61996275]
[1756464037642,0.2,208.89,208.88,72.21996275]
[1756464038361,0.2,208.89,208.84,13.8898588]
[1756464038362,13.59559401,208.88,208.84,1.918972]
[1756464038540,12.54693098,208.85,208.84,1.918972]
[1756464038940,13.24693098,208.85,208.84,1.918972]
[1756464039149,13.24693098,208.85,208.75,18.02719111]
[1756464039364,19.30467141,208.82,208.77,26.03]
[1756464039651,0.7,208.81,208.77,0.03]
[1756464039965,19.30467141,208.79,208.77,0.03]
[1756464040453,19.30467141,208.78,208.77,0.03]
[1756464040659,20.00467141,208.78,208.77,0.03]
[1756464042051,0.7,208.78,208.77,0.03]
[1756464042868,37.96962696,208.87,208.77,0.03]
[1756464042869,0.7,208.84,208.79,26.0]
[1756464043053,0.2,208.89,208.8,19.99467141]
[1756464043054,20.00467141,208.87,208.8,19.99467141]
[1756464043253,19.30467141,208.86,208.81,26.0]
[1756464043457,20.00467141,208.86,208.81,26.0]
[1756464043763,0.7,208.85,208.81,26.0]
[1756464043953,0.7,208.85,208.81,45.30467141]
[1756464044860,0.76,208.85,208.81,45.30467141]
[1756464045056,0.06,208.85,208.84,19.30467141]
[1756464045271,0.06,208.85,208.84,97.80467141]
[1756464045771,0.06,208.85,208.84,78.5]
[1756464046556,0.06,208.85,208.84,97.80467141]
[1756464047771,0.06,208.85,208.84,102.59302613]
[1756464047957,0.06,208.85,208.84,97.80467141]
[1756464048774,0.06,208.85,208.84,102.59302613]
[1756464049273,0.06,208.85,208.84,103.28302613]
[1756464049478,0.06,208.85,208.84,143.84302613]
[1756464049654,0.06,208.85,208.84,97.80467141]
[1756464049849,0.06,208.85,208.84,78.5]
[1756464050357,0.06,208.85,208.84,102.59302613]
[1756464051268,0.06,208.85,208.84,103.28302613]
[1756464051578,0.06,208.85,208.84,143.13302613]
[1756464051950,0.06,208.85,208.84,138.34467141]
[1756464052453,0.06,208.85,208.84,119.04]
[1756464052784,0.06,208.85,208.84,138.34467141]
[1756464054185,0.06,208.85,208.84,119.04]
[1756464054385,0.06,208.85,208.84,138.34467141]
[1756464055082,0.06,208.85,208.84,119.04]
[1756464055460,0.06,208.85,208.84,40.54]
[1756464055661,0.06,208.85,208.83,138.34467141]
[1756464055869,0.06,208.85,208.84,19.30467141]
[1756464059187,0.06,208.85,208.83,143.11325042]
[1756464059589,0.06,208.85,208.83,138.32467141]
[1756464060192,0.06,208.85,208.8,4.78908033]
[1756464060193,0.7,208.84,208.8,4.78908033]
[1756464060486,0.7,208.83,208.8,4.78908033]
[1756464060674,0.06,208.85,208.79,40.5]
[1756464060675,0.71,208.82,208.79,40.5]
[1756464060870,0.71,208.81,208.77,78.53]
[1756464061081,0.71,208.8,208.77,119.03]
[1756464061276,0.71,208.8,208.77,123.81987226]
[1756464061478,0.71,208.8,208.77,119.03]
[1756464061672,0.71,208.79,208.77,0.03]
[1756464062082,12.54877736,208.8,208.77,0.03]
[1756464062083,0.71,208.78,208.77,0.03]
[1756464064574,13.25877736,208.78,208.77,0.03]
[1756464064896,18.04850817,208.78,208.77,0.03]
[1756464066584,21.94532392,208.78,208.77,0.03]
[1756464066889,18.04850817,208.78,208.77,0.03]
[1756464067092,5.49973081,208.78,208.77,0.03]
[1756464067277,0.71,208.81,208.77,0.03]
[1756464067588,13.25877736,208.81,208.77,0.03]
[1756464067775,12.54877736,208.81,208.77,0.03]
[1756464068090,0.71,208.8,208.77,0.03]
[1756464068584,45.26862094,208.83,208.77,0.03]
[1756464068585,0.71,208.83,208.77,13.23877736]
[1756464068780,0.71,208.83,208.79,12.54877736]
[1756464068988,0.71,208.83,208.77,13.23877736]
[1756464069373,13.31877736,208.85,208.79,12.54877736]
[1756464069573,13.25877736,208.84,208.78,12.54877736]
[1756464071191,0.71,208.84,208.79,4.78950141]
[1756464071377,0.71,208.83,208.79,4.78950141]
[1756464071571,0.71,208.83,208.73,116.47670496]
[1756464071572,13.59559401,208.79,208.52,24.00752865]
[1756464071886,67.46178242,208.8,208.63,0.66]
[1756464071887,19.30089121,208.68,208.63,0.66]
[1756464072069,40.46,208.71,208.63,0.66]
[1756464072275,19.30089121,208.66,208.61,0.66]
[1756464072497,0.61,208.7,208.61,0.66]
[1756464072899,0.61,208.73,208.63,19.30089121]
[1756464073204,24.09271109,208.69,208.64,0.66]
[1756464073374,19.30089121,208.67,208.61,0.66]
[1756464073693,19.30089121,208.64,208.61,0.66]
[1756464073878,19.30089121,208.64,208.59,0.76]
[1756464074070,19.30089121,208.64,208.6,0.66]
[1756464074270,19.30089121,208.62,208.59,0.1]
[1756464074470,19.30089121,208.62,208.59,26.76]
[1756464074881,19.30089121,208.62,208.59,0.76]
[1756464076300,19.30089121,208.6,208.59,0.1]
[1756464077182,19.30089121,208.62,208.59,0.1]
[1756464078195,19.30089121,208.61,208.59,0.1]
[1756464078401,19.30089121,208.6,208.59,0.1]
[1756464078591,19.91089121,208.6,208.59,0.1]
[1756464078790,0.61,208.6,208.59,0.1]
[1756464079176,5.40386385,208.6,208.59,0.1]
[1756464079503,24.09475506,208.6,208.59,0.1]
[1756464080595,24.70475506,208.6,208.59,0.1]
[1756464082494,65.16475506,208.6,208.59,0.1]
[1756464084686,19.30089121,208.6,208.59,0.1]
[1756464084887,59.76089121,208.6,208.59,0.1]
[1756464085204,24.09475506,208.6,208.59,0.1]
[1756464085385,64.55475506,208.6,208.59,0.1]
[1756464085585,30.79366196,208.61,208.59,0.1]
[1756464085894,59.74089121,208.63,208.6,0.66]
[1756464086093,59.74089121,208.63,208.59,0.1]
[1756464086289,19.30089121,208.62,208.59,0.76]
[1756464086790,19.30089121,208.6,208.59,0.1]
[1756464088705,19.30089121,208.62,208.59,0.76]
[1756464089496,19.30089121,208.61,208.59,0.76]
[1756464089696,19.30089121,208.61,208.59,0.1]
[1756464089887,19.30089121,208.6,208.59,0.1]
[1756464092291,24.09475506,208.6,208.59,0.1]
[1756464092896,24.70475506,208.6,208.59,0.1]
[1756464093394,17.37261172,208.6,208.59,0.1]
[1756464093704,17.98261172,208.6,208.59,0.1]
[1756464094180,12.57874787,208.62,208.59,0.82]
[1756464094381,52.99874787,208.62,208.59,0.82]
[1756464095007,12.57874787,208.61,208.59,0.1]
[1756464095214,12.57874787,208.6,208.59,0.1]
[1756464095784,12.57874787,208.61,208.59,0.1]
[1756464096793,12.57874787,208.6,208.59,0.1]
[1756464098106,17.37261172,208.6,208.59,0.1]
[1756464098807,4.79367725,208.61,208.59,0.1]
[1756464098978,12.57874787,208.6,208.59,0.1]
[1756464099184,12.57874787,208.61,208.59,0.1]
[1756464100006,12.57874787,208.6,208.59,0.1]
[1756464101204,17.98261172,208.6,208.59,0.1]
[1756464101607,12.57874787,208.61,208.59,0.82]
[1756464101799,57.77234531,208.62,208.59,0.1]
[1756464102184,40.4,208.62,208.6,0.72]
[1756464102388,40.4,208.62,208.61,0.72]
[1756464103916,26.0,208.67,208.61,13.29874787]
[1756464103917,40.38,208.67,208.61,13.29874787]
[1756464104090,52.95874787,208.67,208.62,0.72]
[1756464104291,12.57874787,208.66,208.62,0.72]
[1756464104592,12.57874787,208.66,208.63,0.72]
[1756464105300,40.38,208.67,208.61,0.72]
[1756464105508,17.37128609,208.66,208.61,0.72]
[1756464106393,17.37128609,208.66,208.62,0.72]
[1756464107394,12.57874787,208.66,208.62,0.72]
[1756464108817,12.57874787,208.65,208.59,84.11386462]
[1756464109013,17.37125635,208.66,208.6,0.72]
[1756464109912,17.37125635,208.66,208.6,5.51374297]
[1756464110113,12.57874787,208.66,208.6,5.51374297]
[1756464110323,12.57874787,208.66,208.6,18.09249084]
[1756464112118,12.57874787,208.66,208.6,5.51374297]
[1756464112314,17.37126631,208.66,208.6,5.51374297]
[1756464112618,12.57874787,208.65,208.6,5.51374297]
[1756464113922,12.57874787,208.64,208.6,0.72]
[1756464114599,12.57874787,208.64,208.61,0.72]
[1756464116523,12.57874787,208.62,208.6,0.03]
[1756464116724,12.57874787,208.61,208.6,0.03]
[1756464117604,13.18874787,208.61,208.6,0.03]
[1756464118513,17.98238192,208.61,208.6,0.03]
[1756464118808,17.37238192,208.61,208.6,0.03]
[1756464119811,17.98238192,208.61,208.6,0.03]
[1756464120010,12.57874787,208.61,208.6,0.03]
[1756464120225,43.98238192,208.61,208.6,0.03]
[1756464121431,48.02459996,208.61,208.6,0.03]
[1756464122738,40.3,208.61,208.6,0.03]
[1756464122906,40.3,208.61,208.6,0.72]
[1756464123226,52.87874787,208.61,208.6,0.03]
[1756464123416,57.67238192,208.61,208.6,0.03]
[1756464124345,52.87874787,208.61,208.6,0.03]
[1756464125708,57.67238192,208.61,208.6,0.03]
[1756464126724,58.28238192,208.61,208.6,0.03]
[1756464128332,71.87797593,208.61,208.6,0.03]
[1756464128720,77.25766323,208.61,208.6,0.03]
[1756464130342,71.87797593,208.61,208.6,0.03]
[1756464131437,71.87797593,208.61,208.57,0.03]
[1756464131438,26.0,208.58,208.57,0.03]
[1756464131623,78.83874787,208.58,208.57,0.03]
[1756464132427,83.63307139,208.58,208.57,0.03]
[1756464136221,87.66372353,208.58,208.57,0.03]
[1756464136622,101.86931754,208.58,208.57,0.03]
[1756464136926,97.8386654,208.58,208.57,0.03]
[1756464142342,85.25991753,208.58,208.56,0.1]
[1756464142645,66.37434188,208.57,208.56,0.1]
[1756464143445,4.02347783,208.61,208.56,0.79]
[1756464143629,16.6022257,208.61,208.56,0.79]
[1756464143823,40.2,208.6,208.56,0.79]
[1756464144018,52.77874787,208.6,208.56,0.79]
[1756464144441,44.99391255,208.6,208.56,0.79]
[1756464144648,57.57266042,208.6,208.56,0.79]
[1756464144841,26.0,208.57,208.56,0.1]
[1756464145026,78.77874787,208.57,208.56,0.79]
[1756464145235,66.2,208.57,208.56,0.79]
[1756464152532,0.06,208.59,208.56,13.36874787]
[1756464152863,0.06,208.59,208.58,12.57874787]
[1756464153230,0.06,208.59,208.58,13.28874787]
[1756464153438,0.06,208.59,208.58,0.71]
[1756464153851,17.43286108,208.59,208.56,0.81]
[1756464154057,40.14,208.58,208.57,0.71]
[1756464156858,40.14,208.58,208.56,0.1]
[1756464156859,44.93432352,208.58,208.56,0.1]
[1756464157155,44.93432352,208.58,208.56,0.81]
[1756464159257,40.14,208.58,208.56,0.81]
[1756464159556,40.14,208.58,208.57,0.71]
[1756464160777,0.06,208.59,208.57,13.28874787]
[1756464161076,0.06,208.59,208.58,12.57874787]
[1756464161250,0.06,208.59,208.57,17.37329467]
[1756464161567,0.06,208.59,208.58,0.71]
[1756464162074,0.06,208.59,208.56,0.1]
[1756464162371,0.06,208.59,208.57,0.71]
[1756464162578,0.06,208.59,208.58,0.71]
[1756464163559,12.63874787,208.59,208.56,0.1]
[1756464163757,40.1,208.58,208.56,0.81]
[1756464163953,52.67874787,208.58,208.56,0.81]
[1756464164465,40.1,208.58,208.56,0.1]
[1756464164669,40.1,208.58,208.57,0.71]
[1756464167550,40.1,208.58,208.56,0.1]
[1756464167751,40.1,208.58,208.57,0.71]
[1756464167957,40.1,208.58,208.56,0.1]
[1756464168157,52.67874787,208.58,208.56,0.1]
[1756464168369,40.1,208.58,208.56,0.81]
[1756464168572,40.16,208.58,208.56,0.81]
[1756464170258,40.16,208.58,208.56,0.1]
[1756464171476,44.95441568,208.58,208.56,0.1]
[1756464171782,40.16,208.58,208.56,0.1]
[1756464172371,16.6022257,208.57,208.56,0.1]
[1756464175283,22.00677908,208.57,208.56,0.1]
[1756464176081,21.39677908,208.57,208.56,0.1]
[1756464176591,16.6022257,208.57,208.56,0.1]
[1756464176766,44.18347783,208.58,208.56,0.81]
[1756464176965,40.16,208.58,208.56,0.81]
[1756464177268,40.16,208.58,208.57,0.71]
[1756464177470,40.16,208.58,208.56,0.1]
[1756464177664,56.7622257,208.58,208.56,0.81]
[1756464178888,52.73874787,208.58,208.56,0.81]
[1756464180392,56.7622257,208.58,208.56,0.81]
[1756464180768,40.16,208.58,208.56,0.81]
[1756464183291,44.18347783,208.58,208.56,0.81]
[1756464184491,44.18347783,208.58,208.56,0.1]
[1756464184690,48.97784364,208.58,208.56,0.1]
[1756464184997,12.57874787,208.57,208.56,0.1]
[1756464185196,16.6022257,208.57,208.56,0.1]
[1756464185615,17.98330125,208.57,208.56,0.1]
[1756464185790,17.37330125,208.57,208.56,0.1]
[1756464188730,12.57874787,208.57,208.56,0.1]
[1756464189714,17.37330125,208.57,208.56,0.1]
[1756464191141,4.79455338,208.57,208.56,0.1]
[1756464191307,17.37330125,208.57,208.56,0.1]
[1756464191726,43.98330125,208.57,208.56,0.1]
[1756464192012,62.9623987,208.57,208.56,0.1]
[1756464192331,26.09091827,208.57,208.56,0.1]
[1756464193015,26.0,208.56,208.55,0.03]
[1756464193220,82.54430054,208.56,208.55,0.03]
[1756464193620,84.46779354,208.56,208.55,0.03]
[1756464193821,80.42224087,208.56,208.55,0.03]
[1756464194324,89.26018279,208.56,208.55,0.03]
[1756464194931,98.81261815,208.56,208.54,0.03]
[1756464195118,16.62193898,208.55,208.54,0.03]
[1756464195432,39.59559401,208.52,208.51,1e-08]
[1756464195628,108.69570323,208.52,208.51,1e-08]
[1756464196217,110.61965923,208.52,208.51,1e-08]
[1756464196538,13.59559401,208.51,208.49,0.03]
[1756464196713,39.9,208.5,208.49,0.03]
[1756464196909,52.47874787,208.5,208.49,0.03]
[1756464198435,57.27491093,208.5,208.49,0.03]
[1756464199314,59.19895893,208.5,208.49,0.03]
[1756464200938,72.79455294,208.5,208.49,0.03]
[1756464201648,65.88,208.5,208.49,0.73]
[1756464201828,43.37491093,208.5,208.49,0.73]
[1756464202035,57.23491093,208.5,208.49,0.73]
[1756464202328,70.83050494,208.5,208.49,0.03]
[1756464203527,58.25175707,208.5,208.49,0.03]
[1756464203733,70.83050494,208.5,208.49,0.03]
[1756464204256,30.97050494,208.5,208.49,0.03]
[1756464204453,70.83050494,208.5,208.49,0.03]
[1756464205152,72.75436794,208.5,208.49,0.03]
[1756464208876,72.75436794,208.5,208.49,0.73]
[1756464209054,32.89436794,208.5,208.49,0.73]
[1756464209379,72.73436794,208.5,208.49,0.03]
[1756464211764,72.73436794,208.5,208.49,0.74]
[1756464212075,41.743863,208.5,208.49,0.74]
[1756464212270,39.82,208.5,208.49,0.74]
[1756464212778,54.32242587,208.5,208.49,0.74]
[1756464213560,59.11858893,208.5,208.49,0.74]
[1756464214772,46.53984106,208.5,208.49,0.74]
[1756464214981,54.32242587,208.5,208.49,0.74]
[1756464215877,59.11858893,208.5,208.49,0.74]
[1756464216672,59.11858893,208.5,208.49,0.03]
[1756464217865,72.71418294,208.5,208.49,0.03]
[1756464218770,76.75679642,208.5,208.49,0.03]
[1756464218969,72.71418294,208.5,208.49,0.03]
[1756464219175,76.75679642,208.5,208.49,0.03]
[1756464220460,76.75679642,208.5,208.49,0.74]
[1756464220663,45.72629148,208.5,208.49,0.74]
[1756464220874,52.33874787,208.5,208.49,0.74]
[1756464221074,57.13491093,208.5,208.49,0.74]
[1756464221659,59.05858893,208.5,208.49,0.74]
[1756464222578,59.05858893,208.5,208.49,0.03]
[1756464223579,63.10120241,208.5,208.49,0.74]
[1756464225770,63.10120241,208.5,208.49,0.03]
[1756464225970,59.05858893,208.5,208.49,0.03]
[1756464226283,72.65418294,208.5,208.49,0.03]
[1756464227004,44.39221718,208.48,208.47,0.03]
[1756464227189,70.69096505,208.48,208.47,0.03]
[1756464228400,76.06839252,208.48,208.47,0.03]
[1756464229280,13.59559401,208.47,208.46,0.03]
[1756464229481,26.17434188,208.47,208.46,0.03]
[1756464230076,26.0,208.45,208.44,0.03]
[1756464230283,83.65975522,208.45,208.44,0.03]
[1756464230878,85.58426622,208.45,208.44,0.03]
[1756464231498,90.38157972,208.45,208.44,0.03]
[1756464232000,94.25431078,208.45,208.44,0.03]
[1756464233495,107.84990479,208.45,208.44,0.03]
[1756464236402,102.46889744,208.45,208.44,0.03]
[1756464239494,55.57261821,208.45,208.44,0.03]
[1756464239810,102.42889744,208.45,208.44,0.74]
[1756464240279,102.40889744,208.45,208.44,0.74]
[1756464241978,1.204511,208.45,208.44,0.74]
[1756464242184,39.64,208.45,208.44,0.74]
[1756464242790,70.61165538,208.45,208.44,0.74]
[1756464243007,69.62480937,208.45,208.44,0.74]
[1756464243887,83.22040338,208.45,208.44,0.03]